fUST/lending_fUST_20250501
["ID","MTS","AMOUNT","RATE_DAILY","PERIOD"]
[359536802,1746096649422,-407.53299471,0.0003589,12]
[359536803,1746096649432,-400.0,0.0003589,12]
[359536804,1746096649442,-513.62890258,0.0003589,12]
[359536805,1746096649452,-400.0,0.0003589,12]
[359536806,1746096649462,-400.0,0.0003589,12]
[359536807,1746096649471,-400.0,0.0003589,12]
[359536808,1746096649482,-403.57706788,0.0003589,12]
[359536809,1746096649492,-782.18,0.0003589,12]
[359536810,1746096649502,-613.22,0.0003589,12]
[359536812,1746096649511,-400.0,0.0003589,12]
[359536814,1746096649520,-663.26,0.0003589,12]
[359536816,1746096649530,-1214.5,0.0003589,12]
[359536818,1746096649539,-721.89,0.0003589,12]
[359536820,1746096649548,-400.0,0.0003589,12]
[359536822,1746096649558,-523.84734182,0.0003589,12]
[359536824,1746096649568,-400.0,0.0003589,12]
[359536826,1746096649577,-749.12,0.0003589,12]
[359536828,1746096649587,-653.13,0.0003589,12]
[359536830,1746096649597,-400.0,0.0003589,12]
[359536832,1746096649607,-400.0,0.0003589,12]
[359536834,1746096649617,-400.0,0.0003589,12]
[359536836,1746096649627,-2249.58,0.0003589,12]
[359536838,1746096649637,-400.0,0.0003589,12]
[359536840,1746096649646,-400.0,0.0003589,12]
[359536842,1746096649656,-400.0,0.0003589,12]
[359536844,1746096649666,-400.0,0.0003589,12]
[359536846,1746096649675,-400.0,0.0003589,12]
[359536848,1746096649685,-1189.09,0.0003589,12]
[359536850,1746096649696,-7409.08,0.0003589,12]
[359536852,1746096649706,-400.0,0.0003589,12]
[359536854,1746096649715,-400.0,0.0003589,12]
[359536856,1746096649725,-5309.34,0.0003589,2]
[359536858,1746096649735,-587.93,0.0003589,12]
[359536860,1746096649745,-400.0,0.0003589,12]
[359536862,1746096649754,-400.0,0.0003589,12]
[359536864,1746096649764,-400.0,0.0003589,12]
[359536866,1746096649774,-292.33817668,0.0003589,12]
[359536868,1746096649784,-1353.42,0.0003589,12]
[359536870,1746096649794,-400.0,0.0003589,12]
[359536873,1746096649804,-507.67547822,0.0003589,12]
[359536875,1746096649813,-400.0,0.0003589,12]
[359536877,1746096649823,-400.0,0.0003589,12]
[359536879,1746096649832,-406.49,0.0003589,12]
[359536881,1746096649842,-400.0,0.0003589,12]
[359536882,1746096649851,-400.0,0.0003589,12]
[359536885,1746096649860,-400.0,0.0003589,12]
[359536887,1746096649870,-279.70452544,0.0003589,12]
[359536889,1746096649880,-400.0,0.0003589,12]
[359536891,1746096649889,-400.0,0.0003589,12]
[359536893,1746096649899,-400.0,0.0003589,12]
[359536895,1746096649909,-400.0,0.0003589,12]
[359536897,1746096649918,-400.0,0.0003589,12]
[359536899,1746096649927,-400.0,0.0003589,12]
[359536901,1746096649936,-2637.7,0.0003589,12]
[359536903,1746096649946,-1022.26,0.0003589,12]
[359536905,1746096649955,-400.0,0.0003589,12]
[359536907,1746096649965,-400.0,0.0003589,12]
[359536909,1746096649975,-586.11,0.0003589,12]
[359536911,1746096649985,-400.0,0.0003589,12]
[359536913,1746096649994,-400.0,0.0003589,12]
[359536915,1746096650004,-400.0,0.0003589,12]
[359536917,1746096650013,-4465.41,0.0003589,12]
[359536919,1746096650025,-5251.3,0.0003589,12]
[359536921,1746096650037,-360.02503441,0.0003589,12]
[359536923,1746096650047,-400.0,0.0003589,12]
[359536925,1746096650057,-2091.05,0.0003589,12]
[359536927,1746096650066,-400.0,0.0003589,12]
[359536929,1746096650076,-400.0,0.0003589,7]
[359536931,1746096650086,-400.0,0.0003589,12]
[359536933,1746096650097,-409.04236983,0.0003589,12]
[359536935,1746096650107,-400.0,0.0003589,12]
[359536937,1746096650117,-400.0,0.0003589,12]
[359536939,1746096650129,-3705.22,0.0003589,12]
[359536941,1746096650140,-207.84872266,0.0003589,12]
[359536943,1746096650150,-400.0,0.0003589,12]
[359536945,1746096650159,-400.0,0.0003589,12]
[359536947,1746096650169,-400.0,0.0003589,12]
[359536949,1746096650179,-400.0,0.0003589,12]
[359536951,1746096650188,-1883.95,0.0003589,12]
[359536953,1746096650198,-400.0,0.0003589,12]
[359536955,1746096650208,-400.0,0.0003589,12]
[359536957,1746096650217,-791.98,0.0003589,12]
[359536959,1746096650228,-400.0,0.0003589,12]
[359536961,1746096650239,-400.0,0.0003589,12]
[359536963,1746096650248,-400.0,0.0003589,12]
[359536965,1746096650258,-400.0,0.0003589,12]
[359536967,1746096650267,-731.82,0.0003589,12]
[359536969,1746096650277,-400.0,0.0003589,12]
[359536971,1746096650286,-400.0,0.0003589,12]
[359536973,1746096650296,-526.6452681,0.0003589,12]
[359536976,1746096650307,-400.0,0.0003589,12]
[359536978,1746096650316,-400.0,0.0003589,12]
[359536980,1746096650326,-400.0,0.0003589,12]
[359536982,1746096650336,-400.0,0.0003589,12]
[359536984,1746096650345,-413.07,0.0003589,12]
[359536986,1746096650354,-400.0,0.0003589,12]
[359536988,1746096650364,-400.0,0.0003589,12]
[359536990,1746096650373,-402.06268686,0.0003589,12]
[359536991,1746096650382,-1782.62,0.0003589,12]
[359536993,1746096650392,-514.57116597,0.0003589,12]
[359536995,1746096650401,-400.0,0.0003589,12]
[359536997,1746096650411,-307.62635241,0.0003589,12]
[359536999,1746096650420,-400.0,0.0003589,12]
[359537001,1746096650429,-400.0,0.0003589,12]
[359537003,1746096650439,-400.0,0.0003589,12]
[359537005,1746096650448,-400.0,0.0003589,12]
[359537007,1746096650458,-2643.74,0.0003589,12]
[359537009,1746096650467,-400.0,0.0003589,12]
[359537011,1746096650477,-400.0,0.0003589,12]
[359537014,1746096650489,-652.63,0.0003589,12]
[359537016,1746096650500,-400.0,0.0003589,12]
[359537018,1746096650509,-400.0,0.0003589,12]
[359537020,1746096650519,-2256.5,0.0003589,12]
[359537022,1746096650529,-880.9,0.0003589,12]
[359537024,1746096650539,-501.35102376,0.0003589,12]
[359537026,1746096650549,-1390.66,0.0003589,12]
[359537028,1746096650558,-400.0,0.0003589,12]
[359537030,1746096650569,-553.06,0.0003589,12]
[359537032,1746096650578,-746.24,0.0003589,12]
[359537034,1746096650588,-734.35,0.0003589,12]
[359537036,1746096650597,-320.90339566,0.0003589,12]
[359537038,1746096650606,-400.0,0.0003589,12]
[359537040,1746096650616,-400.0,0.0003589,12]
[359537042,1746096650626,-400.0,0.0003589,12]
[359537044,1746096650636,-400.0,0.0003589,12]
[359537046,1746096650645,-400.0,0.0003589,12]
[359537048,1746096650654,-400.0,0.0003589,12]
[359537050,1746096650664,-400.0,0.0003589,12]
[359537052,1746096650673,-400.0,0.0003589,12]
[359537054,1746096650683,-400.0,0.0003589,12]
[359537056,1746096650692,-400.0,0.0003589,12]
[359537058,1746096650702,-1827.75,0.0003589,12]
[359537060,1746096650712,-400.0,0.0003589,12]
[359537062,1746096650722,-400.0,0.0003589,12]
[359537064,1746096650733,-400.0,0.0003589,12]
[359537066,1746096650742,-400.0,0.0003589,12]
[359537068,1746096650752,-874.5,0.0003589,12]
[359537070,1746096650761,-400.0,0.0003589,12]
[359537072,1746096650772,-400.0,0.0003589,12]
[359537074,1746096650782,-400.0,0.0003589,12]
[359537076,1746096650792,-400.0,0.0003589,12]
[359537078,1746096650801,-400.0,0.0003589,12]
[359537080,1746096650810,-400.0,0.0003589,12]
[359537082,1746096650820,-400.0,0.0003589,12]
[359537084,1746096650829,-400.0,0.0003589,12]
[359537086,1746096650839,-497.32808256,0.0003589,12]
[359537088,1746096650848,-1392.23,0.0003589,12]
[359537090,1746096650858,-663.52,0.0003589,12]
[359537092,1746096650867,-400.0,0.0003589,12]
[359537094,1746096650877,-2892.0,0.0003589,12]
[359537096,1746096650886,-400.0,0.0003589,12]
[359537098,1746096650895,-400.0,0.0003589,12]
[359537100,1746096650905,-1206.57,0.0003589,12]
[359537102,1746096650915,-685.28,0.0003589,12]
[359537104,1746096650924,-400.0,0.0003589,12]
[359537106,1746096650934,-400.0,0.0003589,12]
[359537108,1746096650943,-1698.64,0.0003589,12]
[359537110,1746096650952,-930.63,0.0003589,12]
[359537112,1746096650961,-1999.55,0.0003589,12]
[359537114,1746096650970,-1385.06,0.0003589,12]
[359537116,1746096650980,-400.0,0.0003589,12]
[359537118,1746096650989,-400.0,0.0003589,12]
[359537120,1746096650999,-993.2,0.0003589,12]
[359537122,1746096651009,-948.73,0.0003589,12]
[359537124,1746096651018,-400.0,0.0003589,12]
[359537126,1746096651029,-400.0,0.0003589,12]
[359537128,1746096651039,-608.21,0.0003589,12]
[359537130,1746096651049,-400.0,0.0003589,12]
[359537132,1746096651058,-400.0,0.0003589,12]
[359537134,1746096651069,-603.47,0.0003589,12]
[359537136,1746096651078,-400.0,0.0003589,12]
[359537138,1746096651087,-404.65,0.0003589,12]
[359537140,1746096651097,-1600.93,0.0003589,12]
[359537142,1746096651107,-1512.75,0.0003589,12]
[359537144,1746096651116,-1068.22,0.0003589,12]
[359537147,1746096651126,-1715.43,0.0003589,12]
[359537149,1746096651136,-421.82,0.0003589,12]
[359537151,1746096651146,-400.0,0.0003589,12]
[359537153,1746096651155,-400.0,0.0003589,12]
[359537155,1746096651165,-400.0,0.0003589,12]
[359537157,1746096651174,-400.0,0.0003589,12]
[359537159,1746096651183,-365.9755145,0.0003589,12]
[359537161,1746096651193,-400.0,0.0003589,12]
[359537163,1746096651203,-1878.01,0.0003589,12]
[359537165,1746096651212,-520.36,0.0003589,7]
[359537167,1746096651221,-24151.59,0.0003589,12]
[359537169,1746096651231,-400.0,0.0003589,12]
[359537171,1746096651240,-967.92,0.0003589,12]
[359537173,1746096651250,-400.0,0.0003589,12]
[359537175,1746096651260,-618.55,0.0003589,12]
[359537177,1746096651269,-400.0,0.0003589,12]
[359537179,1746096651279,-400.0,0.0003589,12]
[359537181,1746096651289,-151.0,0.00036,14]
[359537183,1746096651298,-234.0,0.00036,2]
[359537185,1746096651309,-234.0,0.00036,2]
[359537187,1746096651319,-160.0,0.00036,7]
[359537189,1746096651328,-12595.7684382,0.00036,7]
[359537191,1746096651338,-2400.0,0.00036079,5]
[359537193,1746096651347,-4706.8,0.000361,30]
[359537195,1746096651356,-5439.67,0.000361,7]
[359537197,1746096651366,-545.0,0.00036119,2]
[359537199,1746096651375,-707.0,0.00036119,2]
[359537201,1746096651384,-2245.0,0.00036119,2]
[359537203,1746096651394,-902.74,0.00036164,12]
[359537205,1746096651403,-400.0,0.00036164,12]
[359537207,1746096651413,-400.0,0.00036164,12]
[359537209,1746096651424,-400.0,0.00036164,12]
[359537211,1746096651433,-400.0,0.00036164,12]
[359537226,1746096651444,-313.34885484,0.00036164,12]
[359537228,1746096651574,-400.0,0.00036164,12]
[359537230,1746096651584,-253.54518929,0.00036164,12]
[359537232,1746096651593,-510.05265774,0.00036164,12]
[359537234,1746096651603,-400.0,0.00036164,12]
[359537236,1746096651613,-590.31,0.00036164,12]
[359537238,1746096651623,-492.25,0.00036164,12]
[359537240,1746096651633,-400.0,0.00036164,12]
[359537242,1746096651642,-400.0,0.00036164,12]
[359537244,1746096651652,-801.35,0.00036164,12]
[359537246,1746096651662,-400.0,0.00036164,12]
[359537248,1746096651672,-400.0,0.00036164,12]
[359537250,1746096651682,-400.0,0.00036164,12]
[359537251,1746096651691,-244.21471632,0.00036164,12]
[359537252,1746096651701,-400.0,0.00036164,12]
[359537253,1746096651710,-187.06093311,0.00036164,12]
[359537254,1746096651719,-423.58,0.00036164,12]
[359537255,1746096651730,-432.05,0.00036164,12]
[359537256,1746096651739,-500.0,0.00036164,12]
[359537257,1746096651748,-400.0,0.00036164,12]
[359537258,1746096651758,-400.0,0.00036164,12]
[359537259,1746096651767,-428.13,0.00036164,12]
[359537260,1746096651776,-400.0,0.00036164,12]
[359537261,1746096651786,-400.0,0.00036164,12]
[359537262,1746096651795,-500.0,0.00036164,12]
[359537263,1746096651804,-400.0,0.00036164,12]
[359537265,1746096651813,-407.57243997,0.00036164,12]
[359537267,1746096651822,-400.0,0.00036164,12]
[359537268,1746096651831,-489.08307338,0.00036164,12]
[359537270,1746096651841,-533.88,0.00036164,12]
[359537273,1746096651850,-400.0,0.00036164,12]
[359537275,1746096651860,-400.0,0.00036164,12]
[359537277,1746096651869,-400.0,0.00036164,12]
[359537279,1746096651878,-406.10020127,0.00036164,12]
[359537281,1746096651887,-634.75,0.00036164,12]
[359537283,1746096651898,-400.0,0.00036164,12]
[359537285,1746096651908,-400.0,0.00036164,12]
[359537287,1746096651917,-400.0,0.00036164,12]
[359537289,1746096651926,-1060.8,0.00036164,12]
[359537291,1746096651935,-400.0,0.00036164,12]
[359537293,1746096651945,-400.0,0.00036164,12]
[359537295,1746096651954,-400.0,0.00036164,12]
[359537297,1746096651963,-287.3360883,0.00036164,12]
[359537299,1746096651972,-400.0,0.00036164,12]
[359537301,1746096651981,-5879.35,0.00036164,12]
[359537303,1746096651990,-400.0,0.00036164,12]
[359537305,1746096651999,-400.0,0.00036164,12]
[359537307,1746096652009,-400.0,0.00036164,12]
[359537309,1746096652017,-400.0,0.00036164,12]
[359537311,1746096652028,-1242.1,0.00036164,12]
[359537313,1746096652039,-1506.06,0.00036164,12]
[359537315,1746096652048,-400.0,0.00036164,12]
[359537317,1746096652057,-505.28538744,0.00036164,12]
[359537319,1746096652067,-400.0,0.00036164,12]
[359537321,1746096652077,-400.0,0.00036164,12]
[359537322,1746096652086,-972.05,0.00036164,12]
[359537324,1746096652095,-400.0,0.00036164,12]
[359537326,1746096652105,-400.0,0.00036164,12]
[359537328,1746096652115,-400.0,0.00036164,12]
[359537330,1746096652124,-437.91,0.00036164,12]
[359537332,1746096652134,-400.0,0.00036164,12]
[359537334,1746096652144,-400.0,0.00036164,12]
[359537337,1746096652154,-974.81,0.00036164,12]
[359537339,1746096652163,-400.0,0.00036164,12]
[359537341,1746096652172,-400.0,0.00036164,12]
[359537343,1746096652181,-922.16,0.00036164,12]
[359537345,1746096652191,-1363.87,0.00036164,12]
[359537347,1746096652201,-400.0,0.00036164,12]
[359537349,1746096652210,-400.0,0.00036164,12]
[359537351,1746096652219,-400.0,0.00036164,12]
[359537353,1746096652234,-1130.45,0.00036164,12]
[359537355,1746096652244,-1035.43,0.00036164,12]
[359537357,1746096652254,-510.3831888,0.00036164,12]
[359537359,1746096652265,-400.0,0.00036164,12]
[359537361,1746096652275,-400.0,0.00036164,12]
[359537363,1746096652285,-400.0,0.00036164,12]
[359537365,1746096652295,-400.0,0.00036164,12]
[359537367,1746096652305,-544.71,0.00036164,12]
[359537369,1746096652315,-400.0,0.00036164,12]
[359537371,1746096652324,-402.84430598,0.00036164,12]
[359537373,1746096652334,-400.0,0.00036164,12]
[359537375,1746096652344,-999.06,0.00036164,12]
[359537377,1746096652354,-400.0,0.00036164,12]
[359537379,1746096652364,-400.0,0.00036164,12]
[359537381,1746096652373,-487.72,0.00036164,12]
[359537383,1746096652383,-400.0,0.00036164,12]
[359537385,1746096652392,-400.0,0.00036164,12]
[359537387,1746096652401,-400.0,0.00036164,12]
[359537389,1746096652411,-400.0,0.00036164,12]
[359537391,1746096652420,-400.0,0.00036164,12]
[359537393,1746096652429,-400.0,0.00036164,12]
[359537395,1746096652438,-534.2797728,0.00036164,12]
[359537397,1746096652448,-687.88,0.00036164,12]
[359537399,1746096652457,-400.0,0.00036164,12]
[359537401,1746096652467,-400.0,0.00036164,12]
[359537403,1746096652479,-400.0,0.00036164,12]
[359537405,1746096652488,-400.0,0.00036164,12]
[359537407,1746096652498,-400.0,0.00036164,12]
[359537409,1746096652507,-766.29,0.00036164,12]
[359537411,1746096652517,-400.0,0.00036164,12]
[359537413,1746096652525,-400.0,0.00036164,12]
[359537415,1746096652535,-414.4,0.00036164,12]
[359537417,1746096652544,-288.54923115,0.00036164,12]
[359537419,1746096652553,-203.9210466,0.00036164,12]
[359537421,1746096652563,-437.32,0.00036164,12]
[359537423,1746096652572,-400.0,0.00036164,12]
[359537425,1746096652582,-400.0,0.00036164,12]
[359537427,1746096652591,-711.38,0.00036164,12]
[359537429,1746096652600,-780.7,0.00036164,12]
[359537431,1746096652609,-850.81,0.00036164,12]
[359537433,1746096652618,-1690.3,0.00036164,12]
[359537435,1746096652627,-504.20975861,0.00036164,12]
[359537437,1746096652637,-400.0,0.00036164,12]
[359537439,1746096652646,-400.0,0.00036164,12]
[359537441,1746096652656,-242.91216363,0.00036164,12]
[359537443,1746096652665,-400.0,0.00036164,12]
[359537445,1746096652674,-400.0,0.00036164,12]
[359537447,1746096652684,-400.0,0.00036164,12]
[359537449,1746096652693,-400.0,0.00036164,12]
[359537451,1746096652703,-786.89,0.00036164,12]
[359537453,1746096652712,-640.11,0.00036164,12]
[359537455,1746096652721,-417.64,0.00036164,12]
[359537457,1746096652732,-400.0,0.00036164,12]
[359537459,1746096652741,-584.45,0.00036164,12]
[359537461,1746096652749,-400.0,0.00036164,12]
[359537463,1746096652758,-400.0,0.00036164,12]
[359537465,1746096652768,-207.30035848,0.00036164,12]
[359537467,1746096652777,-400.0,0.00036164,12]
[359537469,1746096652787,-868.0,0.00036164,12]
[359537471,1746096652796,-716.32,0.00036164,12]
[359537473,1746096652805,-400.0,0.00036164,12]
[359537475,1746096652815,-215.25885462,0.00036164,12]
[359537477,1746096652824,-642.27,0.00036164,12]
[359537479,1746096652833,-400.0,0.00036164,12]
[359537481,1746096652843,-511.03630744,0.00036164,12]
[359537483,1746096652852,-400.0,0.00036164,12]
[359537485,1746096652861,-400.0,0.00036164,12]
[359537487,1746096652871,-7263.1,0.00036164,12]
[359537489,1746096652880,-400.0,0.00036164,12]
[359537491,1746096652890,-400.0,0.00036164,12]
[359537493,1746096652899,-474.85,0.00036164,12]
[359537495,1746096652908,-400.0,0.00036164,12]
[359537497,1746096652918,-1279.87,0.00036164,12]
[359537499,1746096652928,-400.0,0.00036164,12]
[359537501,1746096652937,-400.0,0.00036164,12]
[359537503,1746096652947,-400.0,0.00036164,12]
[359537505,1746096652956,-400.0,0.00036164,12]
[359537507,1746096652965,-782.18,0.00036164,12]
[359537509,1746096652974,-613.22,0.00036164,12]
[359537511,1746096652985,-204.40664857,0.00036164,12]
[359537513,1746096652994,-663.26,0.00036164,12]
[359537515,1746096653002,-1214.5,0.00036164,12]
[359537516,1746096653011,-721.89,0.00036164,12]
[359537519,1746096653021,-305.30119288,0.00036164,12]
[359537520,1746096653035,-400.0,0.00036164,12]
[359537522,1746096653044,-749.12,0.00036164,12]
[359537525,1746096653054,-653.13,0.00036164,12]
[359537527,1746096653063,-400.0,0.00036164,12]
[359537529,1746096653072,-400.0,0.00036164,12]
[359537531,1746096653082,-400.0,0.00036164,12]
[359537533,1746096653092,-2249.58,0.00036164,12]
[359537535,1746096653101,-400.0,0.00036164,12]
[359537537,1746096653110,-400.0,0.00036164,12]
[359537539,1746096653120,-400.0,0.00036164,12]
[359537541,1746096653130,-400.0,0.00036164,12]
[359537543,1746096653139,-400.0,0.00036164,12]
[359537545,1746096653149,-1189.09,0.00036164,12]
[359537547,1746096653158,-7409.08,0.00036164,12]
[359537549,1746096653167,-431.60295215,0.00036164,12]
[359537551,1746096653177,-400.0,0.00036164,12]
[359537553,1746096653186,-5309.34,0.00036164,2]
[359537555,1746096653197,-587.93,0.00036164,12]
[359537557,1746096653207,-400.0,0.00036164,12]
[359537559,1746096653217,-400.0,0.00036164,12]
[359537561,1746096653226,-1353.42,0.00036164,12]
[359537563,1746096653235,-400.0,0.00036164,12]
[359537565,1746096653245,-400.0,0.00036164,12]
[359537567,1746096653255,-400.0,0.00036164,12]
[359537569,1746096653264,-406.49,0.00036164,12]
[359537571,1746096653275,-400.0,0.00036164,12]
[359537573,1746096653284,-400.0,0.00036164,12]
[359537575,1746096653294,-400.0,0.00036164,12]
[359537577,1746096653304,-400.0,0.00036164,12]
[359537579,1746096653314,-483.80013608,0.00036164,12]
[359537581,1746096653323,-400.0,0.00036164,12]
[359537583,1746096653333,-400.0,0.00036164,12]
[359537585,1746096653342,-400.0,0.00036164,12]
[359537587,1746096653353,-400.0,0.00036164,12]
[359537589,1746096653362,-2637.7,0.00036164,12]
[359537591,1746096653372,-1022.26,0.00036164,12]
[359537593,1746096653381,-400.0,0.00036164,12]
[359537595,1746096653391,-501.5967277,0.00036164,12]
[359537597,1746096653400,-586.11,0.00036164,12]
[359537599,1746096653410,-400.0,0.00036164,12]
[359537601,1746096653419,-509.09113005,0.00036164,12]
[359537615,1746096653543,-400.0,0.00036164,12]
[359537617,1746096653553,-4465.41,0.00036164,12]
[359537619,1746096653563,-5251.3,0.00036164,12]
[359537621,1746096653572,-249.31085899,0.00036164,12]
[359537623,1746096653581,-2091.05,0.00036164,12]
[359537625,1746096653591,-345.00126282,0.00036164,12]
[359537627,1746096653600,-402.02393852,0.00036164,7]
[359537629,1746096653609,-400.70526772,0.00036164,12]
[359537631,1746096653619,-345.68583147,0.00036164,12]
[359537633,1746096653628,-417.91519999,0.00036164,12]
[359537635,1746096653637,-3705.22,0.00036164,12]
[359537637,1746096653647,-524.87397212,0.00036164,12]
[359537639,1746096653657,-400.0,0.00036164,12]
[359537641,1746096653666,-400.0,0.00036164,12]
[359537643,1746096653676,-400.0,0.00036164,12]
[359537645,1746096653685,-1883.95,0.00036164,12]
[359537647,1746096653694,-400.0,0.00036164,12]
[359537649,1746096653704,-400.0,0.00036164,12]
[359537651,1746096653714,-791.98,0.00036164,12]
[359537653,1746096653723,-400.0,0.00036164,12]
[359537655,1746096653734,-336.86423308,0.00036164,12]
[359537657,1746096653744,-400.0,0.00036164,12]
[359537659,1746096653753,-400.0,0.00036164,12]
[359537661,1746096653763,-731.82,0.00036164,12]
[359537663,1746096653772,-400.0,0.00036164,12]
[359537665,1746096653782,-400.0,0.00036164,12]
[359537667,1746096653791,-400.0,0.00036164,12]
[359537668,1746096653800,-400.0,0.00036164,12]
[359537669,1746096653810,-400.0,0.00036164,12]
[359537670,1746096653819,-400.0,0.00036164,12]
[359537671,1746096653828,-413.07,0.00036164,12]
[359537672,1746096653838,-400.0,0.00036164,12]
[359537673,1746096653848,-187.78015778,0.00036164,12]
[359537674,1746096653857,-1782.62,0.00036164,12]
[359537675,1746096653867,-400.0,0.00036164,12]
[359537676,1746096653876,-151.0,0.00036164,14]
[359537677,1746096653885,-400.0,0.00036164,12]
[359537678,1746096653895,-400.0,0.00036164,12]
[359537679,1746096653904,-400.0,0.00036164,12]
[359537681,1746096653913,-2643.74,0.00036164,12]
[359537682,1746096653923,-400.0,0.00036164,12]
[359537684,1746096653932,-400.0,0.00036164,12]
[359537686,1746096653942,-400.0,0.00036164,12]
[359537688,1746096653951,-652.63,0.00036164,12]
[359537690,1746096653961,-400.0,0.00036164,12]
[359537692,1746096653970,-2256.5,0.00036164,12]
[359537694,1746096653979,-880.9,0.00036164,12]
[359537696,1746096653989,-1390.66,0.00036164,12]
[359537698,1746096653998,-400.0,0.00036164,12]
[359537700,1746096654008,-553.06,0.00036164,12]
[359537702,1746096654017,-746.24,0.00036164,12]
[359537704,1746096654030,-734.35,0.00036164,12]
[359537707,1746096654044,-400.0,0.00036164,12]
[359537709,1746096654053,-402.69611108,0.00036164,12]
[359537711,1746096654063,-400.0,0.00036164,12]
[359537713,1746096654072,-400.0,0.00036164,12]
[359537715,1746096654082,-400.0,0.00036164,12]
[359537717,1746096654091,-172.0,0.00036164,12]
[359537719,1746096654101,-400.0,0.00036164,12]
[359537721,1746096654111,-213.30580046,0.00036164,12]
[359537723,1746096654120,-400.0,0.00036164,12]
[359537725,1746096654130,-400.0,0.00036164,12]
[359537727,1746096654139,-1827.75,0.00036164,12]
[359537729,1746096654148,-400.0,0.00036164,12]
[359537731,1746096654159,-400.0,0.00036164,12]
[359537733,1746096654169,-400.0,0.00036164,12]
[359537735,1746096654178,-228.59740251,0.00036164,12]
[359537736,1746096654187,-874.5,0.00036164,12]
[359537739,1746096654197,-400.0,0.00036164,12]
[359537740,1746096654207,-400.0,0.00036164,12]
[359537742,1746096654216,-400.0,0.00036164,12]
[359537744,1746096654226,-400.0,0.00036164,12]
[359537746,1746096654236,-400.0,0.00036164,12]
[359537749,1746096654246,-400.0,0.00036164,12]
[359537751,1746096654255,-400.0,0.00036164,12]
[359537753,1746096654265,-400.0,0.00036164,12]
[359537755,1746096654275,-1392.23,0.00036164,12]
[359537757,1746096654284,-663.52,0.00036164,12]
[359537759,1746096654298,-400.0,0.00036164,12]
[359537761,1746096654308,-2892.0,0.00036164,12]
[359537763,1746096654317,-400.0,0.00036164,12]
[359537765,1746096654326,-400.0,0.00036164,12]
[359537767,1746096654335,-1206.57,0.00036164,12]
[359537769,1746096654345,-685.28,0.00036164,12]
[359537771,1746096654355,-400.0,0.00036164,12]
[359537773,1746096654364,-400.0,0.00036164,12]
[359537775,1746096654374,-1698.64,0.00036164,12]
[359537777,1746096654383,-930.63,0.00036164,12]
[359537779,1746096654392,-1999.55,0.00036164,12]
[359537781,1746096654401,-1385.06,0.00036164,12]
[359537783,1746096654411,-400.0,0.00036164,12]
[359537785,1746096654421,-400.0,0.00036164,12]
[359537788,1746096654434,-993.2,0.00036164,12]
[359537790,1746096654444,-948.73,0.00036164,12]
[359537792,1746096654453,-400.0,0.00036164,12]
[359537794,1746096654463,-608.21,0.00036164,12]
[359537796,1746096654473,-400.0,0.00036164,12]